fUSD/lending_fUSD_20250127
["ID","MTS","AMOUNT","RATE_DAILY","PERIOD"]
[350551323,1737959443519,-1007.27,0.00011999,2]
[350551324,1737959443528,-1007.40079444,0.00011999,2]
[350551326,1737959443538,-500.0,0.00011999,2]
[350551329,1737959443548,-500.0,0.00011999,2]
[350551331,1737959443558,-500.0,0.00011999,2]
[350551333,1737959443567,-500.0,0.00011999,2]
[350551335,1737959443576,-500.0,0.00011999,2]
[350551337,1737959443586,-500.0,0.00011999,2]
[350551338,1737959443597,-500.0,0.00011999,2]
[350551341,1737959443606,-500.0,0.00011999,2]
[350551343,1737959443616,-500.0,0.00011999,2]
[350551345,1737959443625,-579.10998827,0.00011999,2]
[350551347,1737959443634,-500.0,0.00011999,2]
[350551349,1737959443644,-500.0,0.00011999,2]
[350551351,1737959443654,-305.6430162,0.00011999,2]
[350551354,1737959443664,-500.0,0.00011999,2]
[350551357,1737959443673,-264.03775404,0.00011999,2]
[350551359,1737959443683,-528.95326834,0.00011999,2]
[350551361,1737959443692,-167.35541679,0.00011999,2]
[350551363,1737959443702,-433.5,0.00011999,2]
[350551365,1737959443712,-500.0,0.00011999,2]
[350551367,1737959443721,-482.6,0.00011999,2]
[350551369,1737959443730,-286.91,0.00011999,2]
[350551371,1737959443739,-283.33,0.00011999,2]
[350551373,1737959443749,-205.12843684,0.00011999,2]
[350551375,1737959443759,-1469.0,0.00012,2]
[350551377,1737959443768,-212844.02918697,0.00012,2]
[350551379,1737959443778,-1490.92861475,0.00012,2]
[350551381,1737959443792,-1873638.91780236,0.00012,2]
[350551383,1737959443801,-865542.30839179,0.00012,2]
[350551395,1737959443903,-245.89,0.0001,2]
[350551397,1737959443912,-143.50788257,0.00010958,2]
[350551399,1737959443923,-356.49211743,0.00010958,2]
[350551401,1737959443933,-141.40169977,0.00011607,2]
[350551403,1737959443945,-260.93749133,0.00011607,2]
[350551405,1737959443955,-500.0,0.00011997,2]
[350551407,1737959443965,-154.40250891,0.00011998,2]
[350551409,1737959443977,-265.48318749,0.00011998,2]
[350551412,1737959443992,-80.1143036,0.00011998,2]
[350551414,1737959444002,-578.17515192,0.00011999,2]
[350551416,1737959444011,-7142.75992174,0.00012,2]
[350551418,1737959444022,-562.4298594,0.00012,2]
[350551420,1737959444034,-3042.4579206,0.00012,2]
[350551422,1737959444045,-503.39722701,0.00012,2]
[350551425,1737959444062,-15565.55,0.00012,2]
[350551429,1737959444089,-500.0,0.00011998,2]
[350551431,1737959444104,-152.02894411,0.00011998,2]
[350551433,1737959444114,-9648.00383842,0.00012,2]
[350551444,1737959444212,-309.86484801,0.00010958,2]
[350551446,1737959444222,-83.43110465,0.00010958,2]
[350551448,1737959444235,-416.56889535,0.00010958,2]
[350551450,1737959444244,-46.31583105,0.00011998,2]
[350551453,1737959444264,-583.97992122,0.00011998,2]
[350551455,1737959444275,-501.32713764,0.00011998,2]
[350551457,1737959444284,-678.78990019,0.00012,2]
[350551459,1737959444295,-1594.40789655,0.00012,2]
[350551461,1737959444307,-1000.0,0.00012,2]
[350551628,1737959445883,-407.82269628,0.00010958,2]
[350551664,1737959446052,-92.17730372,0.00010958,2]
[350551676,1737959446103,-500.0,0.00010958,2]
[350551679,1737959446113,-3523.83852869,0.00011999,2]
[350551682,1737959446122,-5887.98416759,0.00012,2]
[350551690,1737959446153,-500.0,0.00010958,2]
[350551692,1737959446163,-498.61,0.00012,2]
[350551718,1737959446303,-822.39,0.00012,2]
[350551720,1737959446312,-7.73969053,0.00012,2]
[350552951,1737959895638,1000.0,0.00011,11]
[350552955,1737960162086,42892.0,8.793e-05,2]
[350552956,1737960391622,1349.01,8.604e-05,2]
[350553296,1737960632133,-8856.0,9.532e-05,2]
[350553297,1737960632143,-292.131811,9.95e-05,2]
[350553298,1737960632157,-395.6405137,0.0001,3]
[350553299,1737960632166,-159.75,0.00010137,2]
[350553300,1737960632176,-1453.12867589,0.00010329,2]
[350553301,1737960632185,-3712.69410766,0.0001033,2]
[350553302,1737960632198,-882.25315816,0.0001033,2]
[350553303,1737960632208,-746.8927415,0.0001033,2]
[350553304,1737960632219,-993.92,0.0001033,2]
[350553305,1737960632230,-12018.57999268,0.0001033,2]
[350553306,1737960632241,-658.2,0.00010336,2]
[350553307,1737960632251,-1000.0,0.00010357,2]
[350553308,1737960632260,-6280.57300733,0.00010375,2]
[350553309,1737960632271,-375.3054287,0.00010375,2]
[350553310,1737960632282,-3172.50000046,0.00010375,2]
[350553311,1737960632294,-14071.62156351,0.00010375,2]
[350553312,1737960632304,-249.88,0.00010429,2]
[350553313,1737960632313,-830.4228,0.00010506,2]
[350553314,1737960632323,-249.76,0.00010529,2]
[350553315,1737960632334,-247.94,0.00010529,2]
[350553316,1737960632344,-253.3,0.00010529,2]
[350553317,1737960632352,-252.63,0.00010529,2]
[350553318,1737960632362,-245.93,0.00010529,2]
[350553319,1737960632375,-250.0,0.00010572,2]
[350553320,1737960632385,-476.07,0.00010572,2]
[350553321,1737960632394,-534.45,0.00010595,2]
[350553322,1737960632404,-250.0,0.00010597,2]
[350553323,1737960632413,-401.73,0.00010606,2]
[350553324,1737960632423,-162.83,0.00010633,2]
[350553325,1737960632433,-208.44,0.00010705,2]
[350553326,1737960632442,-536.42504501,0.00010758,2]
[350553327,1737960632452,-247.47,0.00010858,2]
[350553328,1737960632461,-254.0,0.00010858,2]
[350553329,1737960632471,-251.4,0.00010858,2]
[350553330,1737960632480,-247.57,0.00010858,2]
[350553331,1737960632490,-1349.01,0.00010867,2]
[350553332,1737960632499,-248.98,0.00010957,2]
[350553333,1737960632509,-249.48,0.00010957,2]
[350553334,1737960632518,-245.49,0.00010957,2]
[350553335,1737960632527,-150.0,0.00010957,2]
[350553336,1737960632537,-511.68424304,0.00010958,2]
[350553337,1737960632546,-513.08040728,0.00010958,2]
[350553338,1737960632556,-501.49208846,0.00010958,2]
[350553339,1737960632565,-500.0,0.00010958,2]
[350553340,1737960632574,-500.0,0.00010958,2]
[350553341,1737960632584,-500.0,0.00010958,2]
[350553342,1737960632593,-500.0,0.00010958,2]
[350553343,1737960632603,-500.0,0.00010958,2]
[350553344,1737960632612,-500.0,0.00010958,2]
[350553345,1737960632626,-380.32407201,0.00010958,2]
[350553346,1737960632635,-500.0,0.00010958,2]
[350553347,1737960632645,-509.59773189,0.00010958,2]
[350553348,1737960632654,-500.0,0.00010958,2]
[350553349,1737960632663,-500.0,0.00010958,2]
[350553350,1737960632673,-500.0,0.00010958,2]
[350553351,1737960632683,-500.0,0.00010958,2]
[350553352,1737960632692,-502.60395204,0.00010958,2]
[350553353,1737960632703,-483.19467329,0.00010958,2]
[350553354,1737960632713,-517.79528323,0.00010958,2]
[350553355,1737960632722,-184.05056831,0.00010958,2]
[350553356,1737960632732,-500.0,0.00010958,2]
[350553357,1737960632742,-500.0,0.00010958,2]
[350553358,1737960632751,-500.0,0.00010958,7]
[350553359,1737960632760,-537.01318361,0.00010958,2]
[350553360,1737960632769,-500.0,0.00010958,2]
[350553361,1737960632778,-500.0,0.00010958,2]
[350553362,1737960632787,-500.0,0.00010958,2]
[350553363,1737960632797,-500.0,0.00010958,2]
[350553364,1737960632806,-500.0,0.00010958,2]
[350553365,1737960632816,-500.0,0.00010958,2]
[350553366,1737960632825,-500.0,0.00010958,2]
[350553367,1737960632835,-500.0,0.00010958,2]
[350553368,1737960632845,-500.0,0.00010958,2]
[350553369,1737960632854,-507.18386865,0.00010958,2]
[350553370,1737960632863,-500.0,0.00010958,2]
[350553371,1737960632875,-501.75343445,0.00010958,2]
[350553372,1737960632885,-500.0,0.00010958,2]
[350553373,1737960632895,-587.3,0.00010958,2]
[350553374,1737960632905,-500.0,0.00010958,2]
[350553375,1737960632914,-505.52001371,0.00010958,2]
[350553376,1737960632924,-500.0,0.00010958,2]
[350553378,1737960632933,-500.0,0.00010958,2]
[350553379,1737960632942,-500.0,0.00010958,2]
[350553381,1737960632951,-500.0,0.00010958,2]
[350553383,1737960632960,-514.62463908,0.00010958,2]
[350553385,1737960632970,-500.0,0.00010958,2]
[350553387,1737960632979,-500.0,0.00010958,2]
[350553389,1737960632987,-500.0,0.00010958,2]
[350553391,1737960632996,-286.43433911,0.00010958,2]
[350553393,1737960633007,-260.3753819,0.00010958,2]
[350553395,1737960633016,-252.58,0.00010958,2]
[350553397,1737960633025,-249.46,0.00010958,2]
[350553399,1737960633035,-150.0,0.00010959,2]
[350553401,1737960633044,-500.0,0.00010972,2]
[350553403,1737960633055,-1300.0,0.00010972,2]
[350553405,1737960633064,-250.0,0.00011047,2]
[350553407,1737960633073,-300.0,0.000113,4]
[350553409,1737960633083,-1054.9,0.00011381,2]
[350553411,1737960633092,-600.0,0.000114,4]
[350553413,1737960633102,-1000.0,0.000115,4]
[350553416,1737960633111,-5075.0,0.000115,3]
[350553419,1737960633123,-681.71271142,0.00011507,2]
[350553423,1737960633144,-2069.28728858,0.00011507,2]
[350553425,1737960633155,-1080.71281142,0.000116,4]
[350553427,1737960633170,-219.28718858,0.000116,4]
[350553429,1737960633181,-416.60744904,0.00011646,2]
[350553431,1737960633191,-1000.0,0.00011651,2]
[350553433,1737960633200,-153.29276238,0.000117,4]
[350553440,1737960633263,-1546.70723762,0.000117,4]
[350553442,1737960633273,-332.0047021,0.0001176,2]
[350553444,1737960633283,-568.634,0.00011768,2]
[350553446,1737960633293,-637.0,0.00011768,2]
[350553448,1737960633303,-150.303,0.00011768,2]
[350553450,1737960633312,-1870.408,0.00011768,2]
[350553452,1737960633322,-1266.132,0.00011768,2]
[350553454,1737960633332,-784.0,0.00011768,2]
[350553456,1737960633341,-2950.0,0.00011768,2]
[350553458,1737960633351,-899.18,0.00011768,2]
[350553460,1737960633361,-702.702,0.00011768,2]
[350553462,1737960633372,-150.884,0.00011768,2]
[350553464,1737960633382,-3067.04506029,0.00011768,2]
[350553466,1737960633394,-838.95493971,0.00011768,2]
[350553468,1737960633405,-1000.0,0.0001178,2]
[350553470,1737960633415,-165.52455522,0.00011798,2]
[350553472,1737960633426,-1260.80124778,0.000118,2]
[350553474,1737960633438,-26241.30416809,0.000118,2]
[350553476,1737960633447,-300.0,0.000118,4]
[350553478,1737960633457,-446.18236466,0.000118,2]
[350553480,1737960633466,-5559.0,0.000118,5]
[350553482,1737960633476,-446.1823646,0.00011811,2]
[350553484,1737960633486,-165.52455522,0.00011815,2]
[350553486,1737960633495,-446.1823646,0.00011822,2]
[350553488,1737960633505,-2085.33807412,0.00011825,2]
[350553490,1737960633515,-5042.76802673,0.00011826,2]
[350553492,1737960633524,-585.21037786,0.00011827,2]
[350553494,1737960633533,-5042.76802673,0.00011827,2]
[350553496,1737960633542,-200.0,0.00011827,2]
[350553498,1737960633551,-8415.28833344,0.00011831,2]
[350553500,1737960633560,-585.21037786,0.00011831,2]
[350553502,1737960633569,-165.52455522,0.00011832,2]
[350553504,1737960633578,-446.1823646,0.00011833,2]
[350553506,1737960633588,-278.26455327,0.00011834,2]
[350553508,1737960633598,-5042.76802673,0.00011838,2]
[350553510,1737960633607,-2409.09135886,0.0001184,2]
[350553511,1737960633618,-200.0,0.0001184,2]
[350553513,1737960633627,-1058.9402056,0.00011842,2]
[350553515,1737960633637,-445.07219123,0.00011844,2]
[350553517,1737960633646,-446.1823646,0.00011844,2]
[350553520,1737960633657,-1937.96673577,0.00011846,2]
[350553521,1737960633704,-3333.53201086,0.00011846,2]
[350553522,1737960633716,-254.99062844,0.00011846,2]
[350553523,1737960633727,-278.90198614,0.00011846,2]
[350553674,1737960638019,-2609.89697223,0.00011846,2]
[350553675,1737960638028,-2313.676,0.00011846,2]
[350553676,1737960638038,-160.398,0.00011846,2]
[350553677,1737960638047,-200.0,0.00011846,2]
[350553678,1737960638056,-2355.84914888,0.00011846,2]
[350553679,1737960638066,-2355.84914888,0.00011847,2]
[350553680,1737960638076,-445.07219123,0.00011848,2]
[350553681,1737960638086,-165.52455522,0.00011849,2]
[350553682,1737960638096,-446.1823646,0.00011856,2]
[350553683,1737960638105,-5042.76802673,0.00011857,2]
[350553684,1737960638114,-2085.33807412,0.00011859,2]
[350553685,1737960638126,-269.07620084,0.00011859,2]
[350553686,1737960638135,-3315.63773343,0.00011859,2]
[350553687,1737960638145,-445.07219123,0.00011861,2]
[350553688,1737960638156,-2085.33807412,0.00011864,2]
[350553689,1737960638168,-8415.28833344,0.00011864,2]
[350553690,1737960638178,-2409.09135886,0.00011865,2]
[350553691,1737960638187,-165.52455522,0.00011866,2]
[350553692,1737960638197,-446.1823646,0.00011867,2]
[350553693,1737960638207,-269.07620084,0.00011867,2]
[350553694,1737960638216,-8415.28833344,0.00011868,2]
[350553695,1737960638226,-1058.9402056,0.00011869,2]
[350553696,1737960638236,-5042.76802673,0.00011871,2]
[350553697,1737960638247,-2355.84914888,0.00011872,2]
[350553698,1737960638256,-278.26455327,0.00011873,2]
[350553699,1737960638265,-278.26455327,0.00011875,2]
[350553700,1737960638274,-446.1823646,0.00011878,2]
[350553701,1737960638283,-500.0,0.00011879,2]
[350553702,1737960638293,-500.0,0.00011879,2]
[350553703,1737960638302,-212398.65837279,0.0001188,2]
[350553704,1737960638312,-3315.63773343,0.00011881,2]
[350553705,1737960638322,-2409.09135886,0.00011882,2]
[350553706,1737960638331,-165.52455522,0.00011883,2]
[350553707,1737960638341,-278.26455327,0.00011884,2]
[350553708,1737960638351,-1058.9402056,0.00011884,2]
[350553709,1737960638361,-3315.63773343,0.00011885,2]
[350553711,1737960638371,-585.21037786,0.00011886,2]
[350553713,1737960638381,-278.26455327,0.00011886,2]
[350553715,1737960638390,-200.0,0.00011887,2]
[350553717,1737960638399,-200.0,0.00011887,2]
[350553719,1737960638408,-585.21037786,0.00011889,2]
[350553721,1737960638417,-446.1823646,0.00011889,2]
[350553723,1737960638427,-200.0,0.00011889,2]
[350553725,1737960638437,-445.07219123,0.00011891,2]
[350553727,1737960638446,-585.21037786,0.00011891,2]
[350553729,1737960638455,-269.07620084,0.00011892,2]
[350553731,1737960638464,-2085.33807412,0.00011892,2]
[350553733,1737960638474,-2355.84914888,0.00011893,2]
[350553735,1737960638483,-445.07219123,0.00011895,2]
[350553736,1737960638492,-5671.843,0.00011898,2]
[350553738,1737960638502,-182.7358,0.00011898,2]
[350553741,1737960638511,-269.07620084,0.00011898,2]
[350553742,1737960638520,-3315.63773343,0.00011898,2]
[350553744,1737960638530,-5000.0,0.00011899,2]
[350553746,1737960638539,-236.64511289,0.00011899,2]
[350553748,1737960638549,-1053.0,0.000119,2]
[350553750,1737960638558,-11829.65486545,0.000119,2]
[350553752,1737960638567,-163.80732429,0.000119,2]
[350553754,1737960638576,-300.0,0.000119,4]
[350553756,1737960638585,-165.52455522,0.000119,2]
[350553758,1737960638594,-446.1823646,0.000119,2]
[350553761,1737960638603,-617.87830942,0.000119,2]
[350553763,1737960638612,-1356.0,0.000119,2]
[350553766,1737960638622,-169.42812386,0.000119,2]
[350553769,1737960638631,-167.70256461,0.000119,2]
[350553771,1737960638640,-1058.9402056,0.00011902,2]
[350553773,1737960638649,-2355.84914888,0.00011902,2]
[350553775,1737960638659,-2409.09135886,0.00011906,2]
[350553777,1737960638668,-8415.28833344,0.00011907,2]
[350553779,1737960638677,-1058.9402056,0.00011908,2]
[350553781,1737960638686,-3315.63773343,0.0001191,2]
[350553783,1737960638695,-200.0,0.00011911,2]
[350553785,1737960638704,-269.07620084,0.00011912,2]
[350553787,1737960638713,-2409.09135886,0.00011914,2]
[350553789,1737960638722,-200.0,0.00011916,2]
[350553791,1737960638731,-2085.33807412,0.00011917,2]
[350553793,1737960638740,-401.73,0.00011932,2]
[350553795,1737960638749,-5793.0,0.00011973,2]
[350553797,1737960638758,-500.0,0.00011973,2]
[350553799,1737960638767,-500.0,0.00011973,2]
[350553801,1737960638777,-714.0568132,0.00011989,2]
[350553803,1737960638786,-164.8259069,0.00011989,2]
[350553805,1737960638795,-254.63777936,0.0001199,2]
[350553807,1737960638804,-254.63777936,0.0001199,2]
[350553809,1737960638813,-254.63777936,0.0001199,2]
[350553811,1737960638822,-164.8259069,0.00011992,2]
[350553813,1737960638831,-164.8259069,0.00011992,2]
[350553815,1737960638839,-10725.22981286,0.00011996,2]
[350553817,1737960638848,-500.0,0.00011997,2]
[350553819,1737960638857,-500.0,0.00011997,2]
[350553821,1737960638866,-500.0,0.00011997,2]
[350553823,1737960638877,-500.0,0.00011997,2]
[350553825,1737960638886,-479.64705072,0.00011997,2]
[350553827,1737960638895,-500.0,0.00011997,2]
[350553829,1737960638905,-608.21638362,0.00011997,2]
[350553831,1737960638913,-500.0,0.00011997,2]
[350553833,1737960638922,-500.0,0.00011997,2]
[350553835,1737960638931,-500.0,0.00011997,2]
[350553837,1737960638940,-500.0,0.00011997,2]
[350553839,1737960638949,-552.79036902,0.00011997,2]
[350553841,1737960638958,-500.0,0.00011997,2]
[350553843,1737960638967,-500.0,0.00011997,2]
[350553845,1737960638976,-500.0,0.00011997,2]
[350553846,1737960638985,-500.0,0.00011997,2]
[350553848,1737960638993,-500.0,0.00011997,2]
[350553850,1737960639002,-500.0,0.00011997,2]
[350553852,1737960639011,-500.0,0.00011997,2]
[350553854,1737960639021,-500.0,0.00011997,2]
[350553856,1737960639030,-500.0,0.00011997,2]
[350553858,1737960639039,-500.0,0.00011997,2]
[350553860,1737960639049,-355.03546098,0.00011997,2]
[350553862,1737960639058,-500.0,0.00011997,2]
[350553864,1737960639067,-510.78929281,0.00011997,2]
[350553866,1737960639076,-500.52003914,0.00011997,2]
[350553868,1737960639084,-229.94303993,0.00011997,2]
[350553870,1737960639094,-500.0,0.00011997,2]
[350553872,1737960639103,-500.0,0.00011997,2]
[350553874,1737960639112,-195.98818,0.00011997,2]
[350553876,1737960639122,-500.0,0.00011997,2]
[350553878,1737960639132,-500.0,0.00011997,2]
[350553880,1737960639141,-218.40605051,0.00011997,2]
[350553882,1737960639151,-570.91081009,0.00011997,2]
[350553884,1737960639163,-500.0,0.00011997,2]
[350553886,1737960639172,-500.0,0.00011997,2]
[350553888,1737960639182,-500.0,0.00011997,2]
[350553890,1737960639192,-500.0,0.00011997,2]
[350553892,1737960639202,-500.0,0.00011997,2]
[350553895,1737960639212,-500.0,0.00011997,2]
[350553896,1737960639222,-500.0,0.00011997,2]
[350553899,1737960639233,-500.0,0.00011997,2]
[350553901,1737960639243,-500.0,0.00011997,2]
[350553903,1737960639253,-253.63208269,0.00011997,2]
[350553905,1737960639263,-180.929525,0.00011997,2]
[350553907,1737960639272,-500.0,0.00011997,2]
[350553909,1737960639282,-500.0,0.00011997,2]
[350553911,1737960639291,-500.0,0.00011997,2]
[350553912,1737960639300,-522.22,0.00011997,2]
[350553914,1737960639310,-500.0,0.00011997,2]
[350553916,1737960639319,-500.0,0.00011997,2]
[350553918,1737960639329,-500.0,0.00011997,2]
[350553920,1737960639339,-443.30495505,0.00011997,2]
[350553922,1737960639348,-500.0,0.00011997,2]
[350553925,1737960639358,-500.0,0.00011997,2]
[350553926,1737960639368,-195.988189,0.00011997,2]
[350553928,1737960639381,-500.0,0.00011997,2]
[350553931,1737960639391,-500.0,0.00011997,2]
[350553933,1737960639401,-500.0,0.00011997,2]
[350553934,1737960639411,-500.0,0.00011997,2]
[350553935,1737960639420,-500.0,0.00011997,2]
[350553936,1737960639430,-508.00931105,0.00011997,2]
[350553937,1737960639440,-500.0,0.00011997,2]
[350553938,1737960639449,-535.08652768,0.00011997,2]
[350553939,1737960639459,-500.0,0.00011997,2]
[350553940,1737960639469,-500.0,0.00011997,2]
[350553941,1737960639478,-500.0,0.00011997,2]
[350553942,1737960639487,-500.0,0.00011997,2]
[350553943,1737960639497,-169.621435,0.00011997,2]
[350553944,1737960639506,-500.0,0.00011997,2]
[350553946,1737960639515,-816.53,0.00011997,2]
[350553948,1737960639525,-500.0,0.00011997,2]
[350553950,1737960639534,-510.56,0.00011997,2]
[350553952,1737960639543,-500.0,0.00011997,2]
[350553954,1737960639552,-500.0,0.00011997,2]
[350553956,1737960639561,-414.00374553,0.00011997,2]
[350553957,1737960639572,-387.94592568,0.00011997,2]
[350553959,1737960639581,-922.36,0.00011997,2]
[350553961,1737960639590,-510.17889258,0.00011997,2]
[350553963,1737960639600,-638.87,0.00011997,2]
[350553965,1737960639609,-500.0,0.00011997,2]
[350553967,1737960639618,-195.98818,0.00011997,2]
[350553969,1737960639631,-500.0,0.00011997,2]
[350553971,1737960639641,-715.35,0.00011997,2]
[350553974,1737960639651,-500.0,0.00011997,2]
[350553975,1737960639660,-339.97332387,0.00011997,2]
[350553978,1737960639670,-500.0,0.00011997,2]
[350553979,1737960639679,-500.0,0.00011997,2]
[350553981,1737960639688,-500.0,0.00011997,2]
[350553984,1737960639698,-1171.0,0.00011997,2]
[350553985,1737960639707,-500.0,0.00011997,2]
[350553987,1737960639717,-500.0,0.00011997,2]
[350553989,1737960639726,-500.0,0.00011997,2]
[350553991,1737960639735,-500.0,0.00011997,2]
[350553993,1737960639745,-500.0,0.00011997,2]
[350553995,1737960639754,-169.62143,0.00011997,2]
[350553997,1737960639764,-500.0,0.00011997,2]
[350554000,1737960639774,-500.0,0.00011997,2]
[350554002,1737960639783,-500.0,0.00011997,2]
[350554004,1737960639793,-544.79,0.00011997,2]
[350554006,1737960639803,-500.0,0.00011997,2]
[350554008,1737960639812,-500.0,0.00011997,2]
[350554011,1737960639822,-500.0,0.00011997,2]
[350554014,1737960639831,-500.0,0.00011997,2]
[350554016,1737960639841,-500.0,0.00011997,2]
[350554017,1737960639850,-500.0,0.00011997,2]
[350554020,1737960639861,-500.0,0.00011997,2]
[350554022,1737960639870,-500.0,0.00011997,2]
[350554024,1737960639881,-500.0,0.00011997,2]
[350554025,1737960639890,-520.11441787,0.00011997,2]
[350554028,1737960639899,-500.0,0.00011997,2]
[350554030,1737960639909,-500.0,0.00011997,2]
[350554032,1737960639919,-500.0,0.00011997,2]
[350554034,1737960639928,-500.0,0.00011997,2]
[350554036,1737960639937,-500.0,0.00011997,2]
[350554038,1737960639947,-500.0,0.00011997,2]
[350554040,1737960639957,-500.0,0.00011997,2]
[350554042,1737960639966,-500.0,0.00011997,2]
[350554046,1737960639975,-500.0,0.00011997,2]
[350554050,1737960639985,-500.0,0.00011997,2]
[350554052,1737960639994,-500.0,0.00011997,2]
[350554055,1737960640003,-500.0,0.00011997,2]
[350554057,1737960640013,-500.0,0.00011997,2]
[350554059,1737960640022,-500.0,0.00011997,2]
[350554061,1737960640033,-500.0,0.00011997,2]
[350554063,1737960640042,-500.0,0.00011997,2]
[350554065,1737960640051,-500.0,0.00011998,2]
[350554067,1737960640061,-500.0,0.00011998,2]
[350554069,1737960640071,-500.0,0.00011998,2]
[350554071,1737960640080,-182.41,0.00011998,2]
[350554073,1737960640090,-500.0,0.00011998,2]
[350554075,1737960640099,-500.0,0.00011998,2]
[350554077,1737960640108,-500.0,0.00011998,2]
[350554079,1737960640118,-500.0,0.00011998,2]
[350554081,1737960640128,-500.0,0.00011998,2]
[350554083,1737960640137,-500.0,0.00011998,2]
[350554085,1737960640147,-223.44923394,0.00011998,2]
[350554087,1737960640157,-479.57056007,0.00011998,2]
[350554089,1737960640170,-500.0,0.00011998,2]
[350554091,1737960640180,-500.0,0.00011998,2]
[350554093,1737960640190,-500.0,0.00011998,2]
[350554095,1737960640200,-807.93,0.00011998,2]
[350554097,1737960640209,-807.93,0.00011998,2]
[350554099,1737960640219,-1026.05,0.00011998,2]
[350554101,1737960640228,-1026.05,0.00011998,2]
[350554103,1737960640238,-500.0,0.00011998,2]
[350554105,1737960640247,-321.4939163,0.00011998,2]
[350554107,1737960640257,-500.0,0.00011998,2]
[350554109,1737960640267,-500.0,0.00011998,2]
[350554111,1737960640276,-269.3096294,0.00011998,2]
[350554113,1737960640286,-381.69240444,0.00011998,2]
[350554115,1737960640296,-500.0,0.00011998,2]
[350554117,1737960640305,-500.0,0.00011998,2]
[350554119,1737960640315,-500.0,0.00011998,2]
[350554121,1737960640324,-500.0,0.00011998,2]
[350554123,1737960640335,-195.98818,0.00011998,2]
[350554125,1737960640344,-500.0,0.00011998,2]
[350554127,1737960640353,-500.0,0.00011998,2]
[350554129,1737960640363,-500.0,0.00011998,2]
[350554131,1737960640373,-500.0,0.00011998,2]
[350554133,1737960640383,-391.20433757,0.00011998,2]
[350554135,1737960640393,-500.0,0.00011998,2]
[350554137,1737960640402,-500.0,0.00011998,2]
[350554139,1737960640412,-500.0,0.00011998,2]
[350554141,1737960640422,-500.0,0.00011998,2]
[350554143,1737960640431,-180.929525,0.00011998,2]
[350554145,1737960640441,-500.0,0.00011998,2]
[350554147,1737960640450,-500.0,0.00011998,2]
[350554149,1737960640461,-500.0,0.00011998,2]
[350554151,1737960640471,-500.0,0.00011998,2]
[350554154,1737960640480,-500.0,0.00011998,2]
[350554156,1737960640490,-522.22,0.00011998,2]
[350554158,1737960640500,-500.0,0.00011998,2]
[350554160,1737960640509,-500.0,0.00011998,2]
[350554162,1737960640519,-500.0,0.00011998,2]
[350554164,1737960640528,-500.0,0.00011998,2]
[350554166,1737960640538,-500.0,0.00011998,2]
[350554167,1737960640547,-500.0,0.00011998,2]
[350554169,1737960640556,-548.35581083,0.00011998,2]
[350554171,1737960640565,-500.0,0.00011998,2]
[350554173,1737960640574,-500.0,0.00011998,2]
[350554175,1737960640584,-500.0,0.00011998,2]
[350554177,1737960640595,-500.0,0.00011998,2]
[350554179,1737960640603,-500.0,0.00011998,2]
[350554181,1737960640613,-500.0,0.00011998,2]
[350554183,1737960640624,-255.0,0.00011998,2]
[350554185,1737960640633,-500.0,0.00011998,2]
[350554187,1737960640643,-500.0,0.00011998,2]
[350554189,1737960640653,-500.0,0.00011998,2]
[350554192,1737960640663,-500.0,0.00011998,2]
[350554193,1737960640673,-500.0,0.00011998,2]